bitfinex/quotes_BTCUSD_20251202
["timestamp","ask_amount","ask_price","bid_price","bid_amount"]
[1764670337844,0.36699854,87020.0,87004.0,0.04554]
[1764670338194,0.323,87019.0,87004.0,0.04554]
[1764670339014,0.323,87019.0,87004.0,0.04454]
[1764670339443,0.323,87019.0,87004.0,0.04492364]
[1764670341956,0.323,87019.0,87005.0,0.02254]
[1764670342338,0.323,87019.0,87006.0,0.04454]
[1764670344414,0.36699854,87020.0,87006.0,0.04454]
[1764670344415,0.323,87015.0,87006.0,0.04454]
[1764670345619,0.323,87015.0,87006.0,0.04554]
[1764670347468,0.323,87015.0,87014.0,0.02254]
[1764670347770,0.323,87015.0,87014.0,0.0407]
[1764670348767,0.323,87015.0,87014.0,0.0417]
[1764670348967,0.323,87019.0,87014.0,0.0417]
[1764670350442,0.323,87023.0,87014.0,0.01816]
[1764670356363,0.01149134,87022.0,87004.0,0.00038364]
[1764670356482,0.68969348,87014.0,87013.0,0.01816]
[1764670356678,0.323,87014.0,87013.0,0.01816]
[1764670357733,0.323,87014.0,87013.0,0.01916]
[1764670357944,0.323,87014.0,87013.0,0.001]
[1764670370931,0.323,87014.0,87013.0,0.01916]
[1764670380560,0.01149134,87022.0,87013.0,0.01916]
[1764670381309,0.73338696,87023.0,87013.0,0.01916]
[1764670382461,0.73338696,87023.0,87013.0,0.01816]
[1764670382680,0.323,87022.0,87013.0,0.01816]
[1764670384026,0.323,87022.0,87004.0,0.00038364]
[1764670384244,0.36669348,87014.0,87012.0,0.01816]
[1764670384439,0.36669348,87020.0,87012.0,0.01816]
[1764670385474,0.323,87019.0,87012.0,0.01816]
[1764670388403,0.323,87021.0,87012.0,0.01816]
[1764670388564,0.323,87021.0,87012.0,0.06164]
[1764670388940,0.29434587,87030.0,87020.0,0.28307222]
[1764670388941,0.05304956,87030.0,87020.0,0.28307222]
[1764670389149,0.05304956,87030.0,87029.0,0.04909]
[1764670389348,0.05304956,87030.0,87029.0,0.11073]
[1764670390752,0.05304956,87030.0,87029.0,0.11373]
[1764670391693,0.05304956,87030.0,87029.0,0.11473]
[1764670399608,0.05304956,87030.0,87029.0,0.34453845]
[1764670400103,0.05304956,87030.0,87029.0,0.11473]
[1764670400304,0.05304956,87030.0,87029.0,0.07125]
[1764670400930,0.05304956,87030.0,87029.0,0.04006]
[1764670404480,0.05304956,87030.0,87029.0,0.11473]
[1764670405360,0.05304956,87030.0,87029.0,0.34453845]
[1764670405904,0.05304956,87030.0,87029.0,0.11473]
[1764670406063,0.05304956,87030.0,87029.0,0.34453845]
[1764670407327,0.05304956,87030.0,87029.0,0.11473]
[1764670408791,0.05304956,87030.0,87029.0,0.004]
[1764670409000,0.08449956,87030.0,87029.0,0.02216]
[1764670409612,0.05304956,87030.0,87029.0,0.02216]
[1764670414257,0.05304956,87030.0,87029.0,0.09706]
[1764670414484,0.0005,87050.0,87041.0,0.01148883]
[1764670414685,0.0005,87050.0,87049.0,0.28129565]
[1764670414886,0.0005,87050.0,87049.0,0.68129565]
[1764670415110,0.0005,87050.0,87049.0,0.72532565]
[1764670415879,0.0005,87050.0,87049.0,0.72932565]
[1764670416086,0.0005,87050.0,87049.0,0.72532565]
[1764670416722,0.0005,87050.0,87049.0,0.72632565]
[1764670417560,0.0005,87050.0,87049.0,0.73132565]
[1764670421086,0.0005,87050.0,87049.0,0.74948565]
[1764670421609,0.0005,87050.0,87049.0,0.34448565]
[1764670421811,0.0005,87050.0,87049.0,0.34348565]
[1764670422139,0.0005,87050.0,87049.0,0.34748565]
[1764670422275,0.0005,87050.0,87049.0,0.34848565]
[1764670423389,0.0005,87050.0,87049.0,0.33032565]
[1764670423596,0.0005,87050.0,87049.0,0.34848565]
[1764670425205,0.00094086,87050.0,87049.0,0.34848565]
[1764670425778,0.00094086,87050.0,87049.0,0.02316]
[1764670427109,0.00094086,87050.0,87049.0,0.25291565]
[1764670427313,0.00094086,87050.0,87049.0,0.02316]
[1764670427515,0.00094086,87050.0,87049.0,0.25291565]
[1764670427719,0.00094086,87050.0,87049.0,0.02316]
[1764670428633,0.00094086,87050.0,87049.0,0.005]
[1764670428831,0.00094086,87050.0,87049.0,0.02316]
[1764670430972,0.00094086,87050.0,87049.0,0.25291565]
[1764670431175,0.00094086,87050.0,87049.0,0.02316]
[1764670431407,0.00094086,87050.0,87049.0,0.25291565]
[1764670431965,0.07386086,87050.0,87049.0,0.005]
[1764670432164,0.07386086,87050.0,87049.0,0.02316]
[1764670432613,0.07386086,87050.0,87049.0,0.005]
[1764670432817,0.03044086,87050.0,87049.0,0.02316]
[1764670432987,0.07386086,87050.0,87049.0,0.02316]
[1764670434671,0.03044086,87050.0,87049.0,0.02316]
[1764670435237,0.07386086,87050.0,87049.0,0.02316]
[1764670435786,0.07386086,87050.0,87049.0,0.02327507]
[1764670435986,0.07386086,87050.0,87049.0,0.00511507]
[1764670436235,0.07386086,87050.0,87049.0,0.02327507]
[1764670437737,0.07386086,87050.0,87049.0,0.02227507]
[1764670437861,0.07386086,87050.0,87049.0,0.01827507]
[1764670438063,0.07386086,87050.0,87049.0,0.01927507]
[1764670441880,0.00094086,87050.0,87049.0,0.01927507]
[1764670442326,0.07386086,87050.0,87049.0,0.01927507]
[1764670443013,0.07386086,87050.0,87049.0,0.01827507]
[1764670443323,0.07382086,87050.0,87049.0,0.01927507]
[1764670451859,0.07382086,87050.0,87049.0,0.00111507]
[1764670452178,0.62657387,87050.0,87049.0,0.00111507]
[1764670453202,0.39682086,87050.0,87049.0,0.00111507]
[1764670453524,0.62657387,87050.0,87049.0,0.00011507]
[1764670454236,0.39682086,87050.0,87049.0,0.00011507]
[1764670454786,0.62657387,87050.0,87049.0,0.00111507]
[1764670454986,0.39682086,87050.0,87049.0,0.00111507]
[1764670455594,2.7186157,87050.0,87049.0,0.00111507]
[1764670456417,2.7186157,87050.0,87049.0,0.00011507]
[1764670460780,2.48886269,87050.0,86990.0,0.01999998]
[1764670460982,0.04939,87007.0,87006.0,0.00038364]
[1764670461190,0.09237,87007.0,87006.0,0.00038364]
[1764670461773,0.323,87010.0,87006.0,0.00038364]
[1764670462234,0.02176,87012.0,87006.0,0.00038364]
[1764670462579,0.02176,87012.0,87006.0,0.00138364]
[1764670463159,0.02176,87012.0,87006.0,0.00038364]
[1764670463539,0.02763,87007.0,87006.0,0.00038364]
[1764670463844,0.35063,87007.0,87006.0,0.00038364]
[1764670464065,0.39361,87007.0,87006.0,0.00038364]
[1764670464237,0.39361,87007.0,87006.0,0.00138364]
[1764670464622,0.39361,87007.0,87006.0,0.00038364]
[1764670464824,0.39361,87007.0,87006.0,0.00238364]
[1764670471671,0.323,87007.0,87006.0,0.00238364]
[1764670475868,0.36375,87007.0,87006.0,0.00238364]
[1764670476089,0.323,87007.0,87006.0,0.00238364]
[1764670476294,0.39057,87007.0,87006.0,0.00238364]
[1764670476714,0.34982,87007.0,87006.0,0.00238364]
[1764670478987,0.39057,87007.0,87006.0,0.00238364]
[1764670481910,0.34982,87007.0,87006.0,0.00238364]
[1764670482327,0.19611161,87007.0,87006.0,0.00238364]
[1764670482475,0.02682,87007.0,87006.0,0.00238364]
[1764670486099,0.02058,87009.0,87006.0,0.00238364]
[1764670487055,0.02058,87009.0,87006.0,0.00038364]
[1764670487257,0.06133,87009.0,87006.0,0.00038364]
[1764670487461,0.06133,87009.0,87006.0,0.00138364]
[1764670488146,0.04075,87008.0,87006.0,0.00138364]
[1764670489030,0.36680354,87016.0,87008.0,0.01149319]
[1764670489031,0.323,87016.0,87008.0,0.01149319]
[1764670489223,0.36680354,87020.0,87015.0,0.02032]
[1764670489431,0.02058,87023.0,87016.0,0.01816]
[1764670489570,0.02058,87023.0,87016.0,0.02965213]
[1764670489797,0.02058,87023.0,87016.0,0.01816]
[1764670490006,0.02058,87023.0,87016.0,0.02965213]
[1764670490385,0.02058,87023.0,87017.0,0.011492]
[1764670491602,0.02058,87023.0,87017.0,0.24133074]
[1764670491806,0.02058,87023.0,87018.0,0.24132809]
[1764670492119,0.02058,87023.0,87018.0,0.01149187]
[1764670493188,0.02058,87023.0,87017.0,0.24132976]
[1764670493630,0.02058,87023.0,87018.0,0.01149187]
[1764670494056,0.02058,87023.0,87017.0,0.24132976]
[1764670494682,0.02058,87023.0,87016.0,0.01816]
[1764670494900,0.02058,87023.0,87017.0,0.011492]
[1764670495134,0.02058,87023.0,87018.0,0.01149187]
[1764670495319,0.02058,87023.0,87017.0,0.24133004]
[1764670495615,0.02058,87023.0,87018.0,0.24132914]
[1764670495756,0.02058,87023.0,87016.0,0.25949274]
[1764670496089,0.0474,87017.0,87016.0,0.01816]
[1764670496472,0.08815,87017.0,87016.0,0.01816]
[1764670497095,0.08815,87017.0,87016.0,0.01916]
[1764670500500,0.08815,87017.0,87016.0,0.001]
[1764670500735,0.08815,87017.0,87016.0,0.01916]
[1764670504827,0.08815,87017.0,87016.0,0.001]
[1764670504828,0.08175455,87017.0,87016.0,0.001]
[1764670505086,0.08175455,87017.0,87016.0,0.01916]
[1764670508434,0.01418455,87017.0,87016.0,0.01916]
[1764670508818,0.01418455,87017.0,87016.0,0.24900278]
[1764670508989,0.01418455,87017.0,87016.0,0.01916]
[1764670509606,0.26567254,87025.0,87016.0,0.01916]
[1764670510509,0.27716349,87025.0,87016.0,0.01916]
[1764670510958,0.26567254,87025.0,87016.0,0.01916]
[1764670511584,0.26567254,87025.0,87016.0,0.01816]
[1764670513024,0.01646,87024.0,87016.0,0.01816]
[1764670513920,0.26567254,87025.0,87016.0,0.02965213]
[1764670514157,0.26567254,87025.0,87018.0,0.01149187]
[1764670514403,0.26567254,87025.0,87019.0,0.01149174]
[1764670514626,0.36680354,87028.0,87018.0,0.2413289]
[1764670514627,0.323,87027.0,87018.0,0.2413289]
[1764670515042,0.323,87027.0,87018.0,0.01149187]
[1764670515298,0.323,87027.0,87019.0,0.01149174]
[1764670515507,0.323,87027.0,87022.0,0.01149134]
[1764670515712,0.02058,87030.0,87021.0,0.24132072]
[1764670516332,0.02058,87030.0,87019.0,0.03286174]
[1764670516782,0.02058,87030.0,87019.0,0.02137]
[1764670517006,0.02058,87030.0,87020.0,0.01149161]
[1764670517210,0.02058,87030.0,87019.0,0.02137]
[1764670517417,0.02058,87030.0,87020.0,0.01149161]
[1764670517625,0.02058,87030.0,87019.0,0.26269531]
[1764670517847,0.02058,87030.0,87019.0,0.02137]
[1764670518242,0.02058,87030.0,87020.0,0.01149161]
[1764670518497,0.02058,87030.0,87019.0,0.03286174]
[1764670518681,0.323,87028.0,87019.0,0.02137]
[1764670523021,0.323,87028.0,87019.0,0.03286174]
[1764670523233,0.323,87028.0,87019.0,0.02137]
[1764670523440,0.323,87028.0,87019.0,0.03286174]
[1764670523644,0.323,87028.0,87019.0,0.02137]
[1764670524064,0.323,87028.0,87019.0,0.26269637]
[1764670524309,0.323,87028.0,87020.0,0.01149161]
[1764670524838,0.323,87028.0,87019.0,0.26269637]
[1764670525035,0.323,87028.0,87020.0,0.01149161]
[1764670525586,0.323,87028.0,87019.0,0.03286174]
[1764670525850,0.323,87028.0,87020.0,0.01149161]
[1764670526060,0.323,87028.0,87019.0,0.03286174]
[1764670527540,0.323,87028.0,87019.0,0.26269654]
[1764670527737,0.323,87028.0,87025.0,0.01149095]
[1764670527959,0.323,87034.0,87027.0,0.05971068]
[1764670528261,0.323,87034.0,87033.0,0.22979789]
[1764670528488,0.323,87034.0,87033.0,0.04822]
[1764670529007,0.323,87039.0,87033.0,0.03285989]
[1764670529413,0.00025194,87044.0,87041.0,0.22977647]
[1764670529653,0.00025194,87044.0,87043.0,0.04822]
[1764670529859,0.00025194,87044.0,87043.0,0.09105]
[1764670531800,0.00025194,87044.0,87043.0,0.09305]
[1764670532019,0.00025194,87044.0,87043.0,0.09105]
[1764670532394,0.00025194,87044.0,87043.0,0.09605]
[1764670532761,0.3671041,87060.0,87058.0,0.2297319]
[1764670533006,0.00044012,87060.0,87059.0,0.01816]
[1764670535344,0.00044012,87060.0,87059.0,0.24888926]
[1764670535994,0.00044012,87060.0,87059.0,0.01916]
[1764670540751,0.00044012,87060.0,87059.0,0.24888926]
[1764670540939,0.00044012,87060.0,87059.0,0.01916]
[1764670541166,0.00094388,87060.0,87059.0,0.01916]
[1764670541387,0.01717388,87060.0,87059.0,0.01916]
[1764670544332,0.01717388,87060.0,87059.0,0.24888926]
[1764670544533,0.01717388,87060.0,87059.0,0.01916]
[1764670545617,0.03340388,87060.0,87059.0,0.01916]
[1764670546008,0.01717388,87060.0,87059.0,0.01916]
[1764670547929,0.35640388,87060.0,87059.0,0.001]
[1764670548089,0.5861305,87060.0,87059.0,0.001]
[1764670550485,0.01148672,87057.0,87052.0,0.01816]
[1764670550833,0.01623,87053.0,87052.0,0.01816]
[1764670552006,0.03246,87053.0,87052.0,0.01816]
[1764670553327,0.01623,87053.0,87052.0,0.01816]
[1764670553763,0.03246,87053.0,87052.0,0.01816]
[1764670555112,0.01623,87053.0,87052.0,0.01816]
[1764670555939,0.01651339,87053.0,87052.0,0.01816]
[1764670557366,0.03274339,87053.0,87052.0,0.01816]
[1764670557768,0.03274339,87053.0,87047.0,0.01816]
[1764670557769,0.22975548,87050.0,87047.0,0.01816]
[1764670557947,0.33923,87048.0,87047.0,0.01816]
[1764670558154,0.35546,87048.0,87047.0,0.01816]
[1764670559090,0.37169,87048.0,87047.0,0.01816]
[1764670560087,0.37169,87048.0,87047.0,0.01916]
[1764670560470,0.60144829,87048.0,87047.0,0.001]
[1764670569272,0.55278469,87038.0,87037.0,0.01816]
[1764670569514,0.57008469,87038.0,87037.0,0.01816]
[1764670569718,0.58738469,87038.0,87037.0,0.01816]
[1764670570299,0.3576,87038.0,87037.0,0.01816]
[1764670572572,0.3403,87038.0,87037.0,0.01816]
[1764670572743,0.3576,87038.0,87037.0,0.01816]
[1764670573107,0.323,87034.0,87033.0,0.00038364]
[1764670573287,0.3403,87034.0,87033.0,0.00038364]
[1764670573495,0.3576,87034.0,87033.0,0.00038364]
[1764670574077,0.58739525,87034.0,87033.0,0.00038364]
[1764670574476,2.58739525,87034.0,87033.0,0.00038364]
[1764670575047,2.60878525,87034.0,87033.0,0.00038364]
[1764670575291,2.60878525,87034.0,87033.0,0.00138364]
[1764670575495,2.60878525,87034.0,87033.0,0.00038364]
[1764670575921,2.60878525,87034.0,87004.0,0.01149372]
[1764670575922,0.56434162,87014.0,87004.0,0.01149372]
[1764670576130,0.0173,87009.0,87005.0,0.02965359]
[1764670576495,0.0173,87006.0,87005.0,0.02965359]
[1764670576905,0.0173,87006.0,87005.0,0.01816]
[1764670577105,0.0346,87006.0,87005.0,0.01816]
[1764670577344,0.0519,87006.0,87005.0,0.01816]
[1764670577499,0.55287184,87005.0,87004.0,0.00138419]
[1764670577700,0.3576,87005.0,87004.0,0.00138419]
[1764670577901,0.58747184,87005.0,87004.0,0.00138419]
[1764670578116,0.58747184,87005.0,87004.0,0.00038419]
[1764670578746,0.26447184,87005.0,87004.0,0.00038419]
[1764670578925,0.0346,87005.0,87004.0,0.00038419]
[1764670579126,0.0346,87005.0,87004.0,0.00238419]
[1764670579982,0.26447184,87005.0,87004.0,0.00238419]
[1764670580281,0.0346,87005.0,87004.0,0.00238419]
[1764670580480,0.26447184,87005.0,87004.0,0.00238419]
[1764670582266,0.26447184,87005.0,87004.0,0.00038419]
[1764670582652,0.26447184,87005.0,87004.0,0.00238419]
[1764670582839,0.26447184,87005.0,87004.0,0.00038419]
[1764670583487,0.0346,87005.0,87004.0,0.00038419]
[1764670584615,0.26447184,87005.0,87004.0,0.00038419]
[1764670585022,2.58747184,87005.0,87004.0,0.00038419]
[1764670585401,2.61704768,87005.0,87004.0,0.00038419]
[1764670588294,2.60563184,87005.0,87004.0,0.00038419]
[1764670592074,2.37576,87005.0,87004.0,0.00038419]
[1764670593256,2.60563184,87005.0,87004.0,0.00038419]
[1764670600065,2.37576,87005.0,87004.0,0.00038419]
[1764670600273,2.60563184,87005.0,87004.0,0.00038419]
[1764670601653,2.37576,87005.0,87004.0,0.00038419]
[1764670601969,0.37576,87005.0,87004.0,0.00038419]
[1764670602921,0.60563184,87005.0,87004.0,0.00038419]
[1764670610430,0.63046441,87005.0,87004.0,0.00038419]
[1764670612204,2.63046441,87005.0,87004.0,0.00038419]
[1764670625858,2.63046441,87005.0,87004.0,0.00038419]
[1764670629878,2.40059257,87005.0,87004.0,0.00038419]
[1764670630282,2.38329257,87005.0,87004.0,0.00038419]
[1764670632158,0.06029257,87005.0,87004.0,0.23025867]
[1764670632328,0.0173,87005.0,87004.0,0.23025867]
[1764670632526,0.3403,87005.0,87004.0,0.23025867]
[1764670633569,0.3403,87005.0,87004.0,0.00038419]
[1764670633887,0.58004184,87005.0,87004.0,0.00038419]
[1764670634083,0.35017,87005.0,87004.0,0.00038419]
[1764670636978,0.58004184,87005.0,87004.0,0.00038419]
[1764670638988,0.35017,87005.0,87004.0,0.00038419]
[1764670639913,0.58004184,87005.0,87004.0,0.00038419]
[1764670640694,0.35017,87005.0,87004.0,0.00038419]
[1764670640915,0.0173,87005.0,87004.0,0.23025867]
[1764670641396,0.3403,87005.0,87004.0,0.23025867]
[1764670641782,0.323,87005.0,87004.0,0.23025867]
[1764670642364,0.0173,87006.0,87005.0,0.22987184]
[1764670642565,0.03454285,87009.0,87008.0,0.22986392]
[1764670642783,0.00987,87012.0,87011.0,0.22985599]
[1764670644158,0.00987,87012.0,87011.0,0.23085599]
[1764670645275,0.01974,87012.0,87011.0,0.23085599]
[1764670646942,0.00987,87012.0,87011.0,0.23085599]
[1764670648879,0.03453931,87014.0,87013.0,0.22985071]
[1764670649600,0.00987,87018.0,87017.0,0.22984014]
[1764670650224,0.04440835,87018.0,87017.0,0.22984014]
[1764670652804,0.04440835,87018.0,87017.0,0.23084014]
[1764670653377,0.05086835,87018.0,87017.0,0.23084014]
[1764670653759,0.05732835,87018.0,87017.0,0.23084014]
[1764670654897,0.02279,87018.0,87017.0,0.23084014]
[1764670656128,0.5756275,87018.0,87017.0,0.001]
[1764670656469,0.61016585,87018.0,87017.0,0.001]
[1764670657015,0.323,87014.0,87013.0,0.24134113]
[1764670657221,0.32946,87014.0,87013.0,0.24134113]
[1764670658494,0.32946,87014.0,87001.0,0.01818]
[1764670658495,0.323,87009.0,87006.0,0.2595203]
[1764670658704,0.323,87009.0,87007.0,0.22986602]
[1764670658904,0.32946,87009.0,87007.0,0.22986602]
[1764670659099,0.00646,87008.0,87007.0,0.22986602]
[1764670659927,0.00646,87008.0,87007.0,0.23086602]
[1764670660067,0.00646,87008.0,87007.0,0.22986602]
[1764670660269,0.00646,87008.0,87007.0,0.23086602]
[1764670661904,0.01292,87008.0,87007.0,0.001]
[1764670662103,0.01292,87008.0,87007.0,0.23086656]
[1764670662356,0.02462,87008.0,87007.0,0.23086656]
[1764670662854,0.03108,87008.0,87007.0,0.23086656]
[1764670663071,0.03108,87008.0,87007.0,0.001]
[1764670663271,0.03108,87008.0,87007.0,0.23086656]
[1764670664668,0.03108,87008.0,87007.0,0.22986656]
[1764670666230,0.03108,87008.0,87006.0,0.01816]
[1764670666433,0.03108,87008.0,87004.0,0.00038419]
[1764670666434,0.323,87005.0,87004.0,0.00038419]
[1764670666653,0.33592,87005.0,87004.0,0.00038419]
[1764670666858,0.58395184,87005.0,87004.0,0.00038419]
[1764670667053,0.35408,87005.0,87004.0,0.00038419]
[1764670667650,0.58395184,87005.0,87004.0,0.00038419]
[1764670668897,0.26095184,87005.0,87004.0,0.00038419]
[1764670670814,0.58395184,87005.0,87004.0,0.00038419]
[1764670671654,2.58395184,87005.0,87004.0,0.00038419]
[1764670672448,2.60877579,87005.0,87004.0,0.00038419]
[1764670672657,2.67129878,87005.0,87004.0,0.00038419]
[1764670672866,2.67129878,87005.0,86973.0,0.01149782]
[1764670672867,0.24143519,86980.0,86976.0,0.01149742]
[1764670673089,0.01149636,86984.0,86980.0,0.22993741]
[1764670673268,0.01149636,86984.0,86981.0,0.01149676]
[1764670673269,0.323,86984.0,86981.0,0.01149676]
[1764670673471,0.33449636,86984.0,86982.0,0.22993143]
[1764670674074,0.00646,86983.0,86982.0,0.22993143]
[1764670675067,0.00646,86983.0,86982.0,0.23293143]
[1764670675270,0.00646,86983.0,86982.0,0.22993143]
[1764670675509,0.00646,86983.0,86982.0,0.23293143]
[1764670676077,0.01292,86983.0,86982.0,0.23293143]
[1764670676647,0.57230998,86983.0,86982.0,0.003]
[1764670677110,0.59046998,86983.0,86982.0,0.003]
[1764670677716,0.2299432,86978.0,86977.0,0.01816]
[1764670677919,0.5594032,86978.0,86977.0,0.01816]
[1764670678122,0.5658632,86978.0,86977.0,0.01816]
[1764670678766,0.32946,86978.0,86977.0,0.01816]
[1764670678923,0.32946,86978.0,86977.0,0.24810584]
[1764670680309,0.32946,86978.0,86977.0,0.25110584]
[1764670680721,0.33592,86978.0,86977.0,0.02116]
[1764670681552,0.32946,86978.0,86977.0,0.02116]
[1764670681976,0.32946,86978.0,86977.0,0.25110584]
[1764670682908,0.32946,86978.0,86977.0,0.02116]
[1764670683116,0.32946,86978.0,86977.0,0.25110584]
[1764670684513,0.32946,86978.0,86977.0,0.02116]
[1764670685551,0.32946,86978.0,86977.0,0.25110584]
[1764670687962,0.323,86978.0,86977.0,0.25110584]
[1764670688374,0.01816,86979.0,86978.0,0.2299432]
[1764670688584,2.00646,86983.0,86982.0,0.22993262]
[1764670689447,2.0,86982.0,86981.0,0.22993527]
[1764670690510,2.323,86982.0,86981.0,0.22993527]
[1764670690726,2.323,86982.0,86981.0,0.23193527]
[1764670692677,2.323,86982.0,86981.0,0.23163527]
[1764670698099,2.323,86982.0,86981.0,0.23193527]
[1764670698542,2.33682,86982.0,86981.0,0.23193527]
[1764670698929,2.32991,86982.0,86981.0,0.23193527]
[1764670701164,2.323,86982.0,86981.0,0.23193527]
[1764670701386,0.323,86982.0,86981.0,0.27494527]
[1764670701609,0.323,86982.0,86981.0,0.31080527]
[1764670701836,0.00691,86989.0,86988.0,0.22991677]
[1764670702294,0.04146029,86989.0,86988.0,0.22991677]
[1764670702516,0.00691,86989.0,86988.0,0.22991677]
[1764670703188,0.00691,86989.0,86988.0,0.23091677]
[1764670703402,0.323,86998.0,86997.0,0.24138762]
[1764670703572,0.323,86998.0,86997.0,0.24108762]
[1764670704426,0.03454623,87001.0,86997.0,0.24108762]
[1764670704427,0.03454623,87001.0,87000.0,0.22988505]
[1764670704629,0.03454623,87001.0,86998.0,0.01149451]
[1764670704834,0.00691,86998.0,86995.0,0.22989703]
[1764670705041,0.00691,86997.0,86996.0,0.22989552]
[1764670705243,0.00691,86997.0,86995.0,0.01149491]
[1764670705448,0.00691,86996.0,86995.0,0.24139247]
[1764670705663,0.00691,86996.0,86994.0,0.24139554]
[1764670706398,0.00691,86996.0,86995.0,0.23089827]
[1764670706613,0.00691,86996.0,86995.0,0.22989827]
[1764670706858,0.00691,86996.0,86993.0,0.01149517]
[1764670707074,0.00691,86996.0,86994.0,0.001]
[1764670707319,0.00691,86996.0,86993.0,0.01149517]
[1764670707520,0.323,86997.0,86994.0,0.01149504]
[1764670707726,0.323,86997.0,86996.0,0.22989562]
[1764670708124,0.323,86998.0,86995.0,0.01149491]
[1764670708328,0.323,86998.0,86996.0,0.22989562]
[1764670708529,0.323,86998.0,86995.0,0.24139296]
[1764670708707,0.323,86998.0,86996.0,0.22989313]
[1764670710467,0.323,87000.0,86997.0,0.22989298]
[1764670710720,0.323,87000.0,86997.0,0.01149464]
[1764670710934,0.323,87000.0,86999.0,0.22988769]
[1764670711108,0.323,87000.0,86998.0,0.22989034]
[1764670711416,0.00631,86999.0,86998.0,0.22989034]
[1764670711806,0.00631,86999.0,86997.0,0.24138753]
[1764670714352,0.02565451,86998.0,86993.0,0.01149517]
[1764670714503,0.00785,86998.0,86995.0,0.22989705]
[1764670714711,0.33085,86998.0,86996.0,0.22989323]
[1764670715146,0.0157,86997.0,86996.0,0.22989323]
[1764670715282,0.00785,86997.0,86996.0,0.22989323]
[1764670716340,0.00785,86997.0,86996.0,0.23089323]
[1764670716757,0.35754623,87001.0,86997.0,0.01149464]
[1764670717029,0.35754623,87001.0,87000.0,0.22988505]
[1764670717664,0.00691,87004.0,87002.0,0.22987895]
[1764670717858,0.00691,87004.0,87003.0,0.22987713]
[1764670718057,2.03454412,87010.0,87009.0,0.22986127]
[1764670718297,0.00785,87011.0,87010.0,0.22985863]
[1764670719054,0.00785,87011.0,87010.0,0.00038469]
[1764670719055,0.02355,87011.0,87010.0,0.00038469]
[1764670719256,0.0157,87011.0,87010.0,0.00038469]
[1764670719958,0.00785,87011.0,87010.0,0.23024332]
[1764670723642,0.00785,87011.0,87010.0,0.22964332]
[1764670724850,0.00785,87011.0,87008.0,0.01149319]
[1764670724851,0.0157,87011.0,87008.0,0.2413569]
[1764670725123,0.00823392,87011.0,87010.0,0.22985863]
[1764670725352,0.01608392,87011.0,87010.0,0.22985863]
[1764670725681,0.00823392,87011.0,87010.0,0.22985863]
[1764670728352,0.00823392,87011.0,87009.0,0.2298604]
[1764670728353,0.00823392,87011.0,87009.0,0.22985925]
[1764670729444,0.00823392,87011.0,87010.0,0.22985863]
[1764670730190,0.00038392,87011.0,87010.0,0.29114863]
[1764670730617,0.00038392,87011.0,87010.0,0.25348863]
[1764670730816,0.00038392,87011.0,87010.0,0.22985863]
[1764670731129,0.00038392,87011.0,87010.0,0.29114863]
[1764670732365,0.00038392,87011.0,87010.0,0.29214863]
[1764670738326,0.00038392,87011.0,87010.0,0.001]
[1764670738502,0.00038392,87011.0,87010.0,0.23085863]
[1764670740323,0.00823392,87011.0,87010.0,0.23085863]
[1764670741432,0.00823392,87011.0,87010.0,0.01916]
[1764670741433,0.33908392,87011.0,87010.0,0.01916]
[1764670741655,0.55286637,87008.0,87004.0,0.22987232]
[1764670741836,0.00785,87005.0,87002.0,0.01149398]
[1764670742075,0.24135175,87010.0,87005.0,0.24136499]
[1764670742281,0.323,87009.0,87006.0,0.01149346]
[1764670742489,0.323,87009.0,87006.0,0.24136133]
[1764670742660,0.0045,87007.0,87006.0,0.24136133]
[1764670743457,0.34349332,87007.0,87002.0,0.01149398]
[1764670743657,0.0045,87006.0,87004.0,0.01149372]
[1764670743879,0.0045,87006.0,87004.0,0.24136711]
[1764670744034,0.0045,87005.0,87004.0,0.24136711]
[1764670744436,0.0045,87005.0,87003.0,0.24137027]
[1764670744778,0.33899332,87007.0,87002.0,0.24137134]
[1764670744779,0.009,87004.0,87002.0,0.24137134]
[1764670744984,0.0045,87003.0,87002.0,0.24137134]
[1764670746928,0.323,87006.0,87005.0,0.22987184]
[1764670747136,0.323,87006.0,87005.0,0.25262184]
[1764670747345,0.36685013,87020.0,87005.0,0.25262184]
[1764670747346,0.33449174,87019.0,87010.0,0.22985863]
[1764670747561,0.03454145,87014.0,87010.0,0.27119863]
[1764670747766,0.03454145,87014.0,87010.0,0.30751863]
[1764670748203,0.33449068,87027.0,87010.0,0.30751863]
[1764670748407,0.33449068,87027.0,87010.0,0.30851863]
[1764670748617,0.323,87027.0,87010.0,0.30851863]
[1764670748994,0.35753748,87028.0,87010.0,0.30851863]
[1764670749177,0.36902803,87028.0,87010.0,0.30851863]
[1764670749373,0.04602803,87028.0,87010.0,0.30851863]
[1764670749578,0.36902803,87028.0,87010.0,0.30751863]
[1764670749777,0.59884145,87028.0,87010.0,0.30751863]
[1764670749961,0.35753748,87028.0,87010.0,0.30851863]
[1764670750162,0.56430184,87028.0,87010.0,0.30851863]
[1764670750379,0.323,87028.0,87010.0,0.30851863]
[1764670750850,0.35753684,87029.0,87010.0,0.30851863]
[1764670751055,0.01149055,87028.0,87010.0,0.30851863]
[1764670751791,0.01149055,87027.0,87010.0,0.30851863]
[1764670752842,0.0045,87030.0,87010.0,0.30851863]
[1764670753596,0.0045,87030.0,87010.0,0.30751863]
[1764670754021,0.0045,87030.0,87010.0,0.31051863]
[1764670754659,0.0045,87030.0,87010.0,0.31151863]
[1764670755007,0.01149055,87034.0,87010.0,0.31151863]
[1764670755827,0.323,87036.0,87010.0,0.31151863]
[1764670756684,0.323,87029.0,87010.0,0.31151863]
[1764670761740,0.0045,87037.0,87010.0,0.31151863]
[1764670762117,0.33898936,87037.0,87010.0,0.31151863]
[1764670762679,0.36685013,87030.0,87010.0,0.31151863]
[1764670762882,0.323,87029.0,87010.0,0.31151863]
[1764670765613,0.323,87029.0,87010.0,0.32967863]
[1764670770612,0.323,87029.0,87010.0,0.31151863]
[1764670770845,0.323,87029.0,87010.0,0.32967863]
[1764670772430,0.33448989,87033.0,87010.0,0.32967863]
[1764670772668,0.323,87033.0,87010.0,0.32967863]
[1764670773880,0.35753279,87035.0,87010.0,0.32967863]
[1764670775165,0.03453279,87035.0,87010.0,0.32967863]